bitfinex/quotes_BTCUSD_20251209
["timestamp","ask_amount","ask_price","bid_price","bid_amount"]
[1765317341086,0.0216,92449.0,92443.0,0.03807]
[1765317341087,0.0216,92449.0,92448.0,0.21633783]
[1765317341262,0.0216,92449.0,92448.0,0.31474472]
[1765317341847,0.0004,92450.0,92448.0,0.31474472]
[1765317342512,0.0004,92450.0,92448.0,0.31574472]
[1765317342513,0.004,92449.0,92448.0,0.31574472]
[1765317343030,0.004,92449.0,92448.0,0.35581472]
[1765317343245,0.004,92449.0,92448.0,0.39618472]
[1765317343778,0.0014,92450.0,92448.0,0.39518472]
[1765317343985,0.0024,92450.0,92449.0,0.20338731]
[1765317344224,0.0014,92450.0,92449.0,0.12494731]
[1765317344398,0.0004,92450.0,92449.0,0.10766731]
[1765317344603,0.0226,92449.0,92448.0,0.003]
[1765317345022,0.0216,92446.0,92445.0,0.01081724]
[1765317345351,0.0216,92446.0,92445.0,0.22716209]
[1765317347223,0.0216,92445.0,92444.0,0.01081735]
[1765317347545,0.0216,92444.0,92443.0,0.21634813]
[1765317347767,0.0216,92444.0,92443.0,0.308555]
[1765317348108,0.0256,92446.0,92445.0,0.21634485]
[1765317348426,0.0216,92446.0,92445.0,0.21634485]
[1765317350272,0.0236,92446.0,92445.0,0.21734485]
[1765317350434,0.0216,92446.0,92445.0,0.21634485]
[1765317350612,0.0216,92446.0,92445.0,0.31777071]
[1765317350820,0.0256,92446.0,92445.0,0.31977071]
[1765317351012,0.0226,92446.0,92445.0,0.31877071]
[1765317351253,0.0226,92446.0,92445.0,0.35692071]
[1765317351491,0.0256,92446.0,92445.0,0.35792071]
[1765317351671,0.0216,92446.0,92445.0,0.35592071]
[1765317352162,0.0226,92446.0,92445.0,0.31877071]
[1765317352860,0.0226,92446.0,92445.0,0.10242586]
[1765317353040,0.0256,92446.0,92445.0,0.10342586]
[1765317353241,0.0226,92446.0,92445.0,0.10242586]
[1765317353646,0.004,92446.0,92445.0,0.19745954]
[1765317353857,0.0004,92450.0,92447.0,0.010817]
[1765317354055,0.0004,92450.0,92449.0,0.26630549]
[1765317354234,0.022,92450.0,92449.0,0.26630549]
[1765317354441,0.022,92450.0,92449.0,0.22872549]
[1765317354974,0.0004,92450.0,92449.0,0.22872549]
[1765317355177,0.022,92450.0,92449.0,0.22872549]
[1765317355376,0.023,92450.0,92449.0,0.32852213]
[1765317356139,0.023,92450.0,92449.0,0.11218664]
[1765317356341,0.026,92450.0,92449.0,0.10079664]
[1765317356543,0.026,92450.0,92449.0,0.002]
[1765317356845,0.025,92450.0,92449.0,0.001]
[1765317357046,0.025,92450.0,92449.0,0.01254]
[1765317357298,0.026,92450.0,92449.0,0.01454]
[1765317357661,0.025,92450.0,92449.0,0.01254]
[1765317357867,0.02661287,92450.0,92449.0,0.04768605]
[1765317358160,0.02761287,92450.0,92449.0,0.002]
[1765317359247,0.11423287,92450.0,92449.0,0.002]
[1765317359448,0.14577366,92450.0,92449.0,0.002]
[1765317359671,0.43647366,92450.0,92449.0,0.002]
[1765317360049,0.65180681,92450.0,92449.0,0.001]
[1765317360258,0.0216,92435.0,92434.0,0.01081852]
[1765317360489,0.23958112,92435.0,92434.0,0.04933073]
[1765317360693,0.0216,92429.0,92428.0,0.22720387]
[1765317360873,0.02321287,92435.0,92434.0,0.21637059]
[1765317361078,0.0099963,92439.0,92438.0,0.22717929]
[1765317361325,0.22635519,92439.0,92438.0,0.0295245]
[1765317361487,0.0099963,92453.0,92443.0,0.01081747]
[1765317361705,0.49509566,92471.0,92449.0,0.26179549]
[1765317361706,0.0143963,92450.0,92449.0,0.26179549]
[1765317362234,0.0004,92450.0,92449.0,0.26179549]
[1765317362475,0.0004,92450.0,92449.0,0.29684549]
[1765317362683,0.0004,92450.0,92449.0,0.39684198]
[1765317362867,0.0004,92450.0,92449.0,0.36179198]
[1765317363310,0.0004,92450.0,92449.0,0.39657198]
[1765317363878,0.0034,92450.0,92449.0,0.39757198]
[1765317364272,0.0004,92470.0,92467.0,0.01081466]
[1765317364450,0.0004,92470.0,92469.0,0.5414887]
[1765317364648,0.21620424,92506.0,92479.0,0.50696531]
[1765317364899,0.01081069,92501.0,92479.0,0.64775003]
[1765317365089,0.00996009,92502.0,92479.0,0.72103348]
[1765317365289,0.01081057,92502.0,92479.0,0.68225003]
[1765317365631,0.21617792,92517.0,92479.0,0.68225003]
[1765317365632,0.00995269,92504.0,92479.0,0.68225003]
[1765317365762,0.02076256,92508.0,92479.0,0.68225003]
[1765317365964,0.01081022,92505.0,92479.0,0.68225003]
[1765317366170,0.0014,92480.0,92479.0,0.68625003]
[1765317366545,0.01080882,92517.0,92489.0,0.21624193]
[1765317366658,0.01080952,92511.0,92499.0,0.21621855]
[1765317366853,0.01080952,92511.0,92499.0,0.30157855]
[1765317367058,0.01080975,92509.0,92499.0,0.30157855]
[1765317367286,0.01080917,92514.0,92499.0,0.30157855]
[1765317367287,0.21618478,92514.0,92499.0,0.30157855]
[1765317367534,0.21618486,92514.0,92499.0,0.30157855]
[1765317367738,0.01081069,92501.0,92497.0,0.01081116]
[1765317367941,0.03198,92513.0,92494.0,0.01728]
[1765317367942,0.21622298,92498.0,92494.0,0.01728]
[1765317368144,0.01081092,92499.0,92495.0,0.01112259]
[1765317368359,0.0103963,92500.0,92497.0,0.24975322]
[1765317368533,0.0004,92500.0,92499.0,0.03353]
[1765317368732,0.0004,92500.0,92499.0,0.06706]
[1765317369303,0.0014,92500.0,92499.0,0.06906]
[1765317369549,0.0014,92500.0,92499.0,0.17070237]
[1765317369758,0.0024,92500.0,92499.0,0.17170237]
[1765317369999,0.0024,92500.0,92499.0,0.13817237]
[1765317370420,0.0024,92500.0,92499.0,0.17115237]
[1765317370835,0.0024,92500.0,92499.0,0.13817237]
[1765317370963,0.0024,92500.0,92499.0,0.17115237]
[1765317371168,0.0024,92500.0,92499.0,0.13817237]
[1765317371367,0.0024,92500.0,92499.0,0.17088237]
[1765317372095,0.0024,92500.0,92499.0,0.13817237]
[1765317372316,0.0024,92500.0,92499.0,0.17061237]
[1765317374730,0.00503077,92528.0,92527.0,0.21615312]
[1765317374937,0.00503077,92528.0,92527.0,0.29719312]
[1765317375750,0.00503077,92528.0,92527.0,0.27995312]
[1765317376047,0.00603077,92528.0,92527.0,0.30019312]
[1765317376257,0.03198,92576.0,92549.0,0.21610174]
[1765317376475,0.01080076,92586.0,92549.0,0.28819174]
[1765317376685,0.01080053,92588.0,92549.0,0.31961174]
[1765317376890,0.22680714,92590.0,92549.0,0.31961174]
[1765317377102,0.01080018,92591.0,92559.0,0.21607839]
[1765317377305,0.01724,92600.0,92559.0,0.25848098]
[1765317377306,0.2267913,92597.0,92559.0,0.25848098]
[1765317377516,0.0099963,92588.0,92569.0,0.21605505]
[1765317377687,0.0099963,92588.0,92569.0,0.26457505]
[1765317378039,0.0099963,92588.0,92569.0,0.29585505]
[1765317378459,0.0108003,92590.0,92569.0,0.29585505]
[1765317378659,0.22680119,92593.0,92569.0,0.29585505]
[1765317378877,0.03198,92605.0,92569.0,0.29885505]
[1765317378878,0.0014,92570.0,92569.0,0.29885505]
[1765317379000,0.0014,92570.0,92569.0,0.37411306]
[1765317379212,0.01079727,92616.0,92607.0,0.01079831]
[1765317379532,0.22835554,92616.0,92610.0,0.01079796]
[1765317379733,0.22835554,92616.0,92600.0,0.03076]
[1765317379734,1.02079403,92612.0,92611.0,0.03849051]
[1765317379933,0.01079913,92600.0,92595.0,0.01079971]
[1765317380271,0.01080053,92588.0,92584.0,0.010801]
[1765317380474,0.03240065,92587.0,92583.0,0.01080111]
[1765317380655,0.0216,92583.0,92582.0,0.01724]
[1765317380854,0.0099963,92586.0,92585.0,0.22681632]
[1765317381259,0.0216,92589.0,92588.0,0.22680965]
[1765317381461,0.0216,92589.0,92588.0,0.01080053]
[1765317381617,0.0216,92587.0,92586.0,0.22681614]
[1765317381806,0.0099963,92597.0,92596.0,0.0107996]
[1765317382005,0.0099963,92600.0,92597.0,0.01079948]
[1765317382413,0.0099963,92600.0,92599.0,0.03001]
[1765317382712,0.0099963,92612.0,92609.0,0.22675881]
[1765317382840,0.02079403,92612.0,92609.0,0.01079808]
[1765317383025,0.01079831,92607.0,92604.0,0.01079866]
[1765317383234,0.0216,92608.0,92606.0,0.21596766]
[1765317383508,0.23756636,92608.0,92603.0,0.21597502]
[1765317383632,0.01079808,92609.0,92605.0,0.01079855]
[1765317383633,0.0216,92606.0,92605.0,0.01079855]
[1765317384549,0.0216,92610.0,92609.0,0.01079808]
[1765317384775,0.002,92612.0,92611.0,0.2159557]
[1765317384972,0.002,92612.0,92610.0,0.01079796]
[1765317385178,0.01079773,92612.0,92607.0,0.01079831]
[1765317385377,0.3014975,92614.0,92610.0,0.01079796]
[1765317385626,0.0099963,92621.0,92612.0,0.01079773]
[1765317385833,0.2267282,92622.0,92617.0,0.04001715]
[1765317386105,0.2267282,92622.0,92608.0,0.02666084]
[1765317386106,0.01079703,92618.0,92614.0,0.22674562]
[1765317386327,0.0107968,92620.0,92616.0,0.01079727]
[1765317386532,0.0107968,92620.0,92615.0,0.27584026]
[1765317386533,0.01079622,92625.0,92621.0,0.01079668]
[1765317386656,0.01079622,92625.0,92622.0,0.01079657]
[1765317386657,0.0216,92625.0,92622.0,0.01079657]
[1765317386882,0.0216,92635.0,92632.0,0.0107954]
[1765317387093,0.22669208,92637.0,92634.0,0.04303]
[1765317387299,0.21590069,92636.0,92634.0,0.04303]
[1765317387528,0.21590069,92636.0,92634.0,0.01407]
[1765317387736,0.21590069,92636.0,92626.0,0.21592139]
[1765317387737,0.0107968,92620.0,92617.0,0.01381]
[1765317387936,0.0216,92621.0,92618.0,0.02803703]
[1765317388292,0.0099963,92628.0,92623.0,0.01079645]
[1765317388429,0.01079517,92634.0,92629.0,0.22670892]
[1765317388430,0.01079528,92633.0,92629.0,0.22670892]
[1765317388639,0.01360917,92635.0,92629.0,0.22670892]
[1765317388640,0.00361287,92635.0,92633.0,0.02844]
[1765317388866,0.00361287,92635.0,92634.0,0.24434344]
[1765317389069,0.01079458,92639.0,92635.0,0.01079505]
[1765317389270,0.01079458,92639.0,92629.0,0.01079575]
[1765317389271,0.0107954,92632.0,92628.0,0.21591596]
[1765317389472,0.22769539,92636.0,92633.0,0.01079528]
[1765317389809,0.001,92636.0,92634.0,0.21590196]
[1765317390009,0.0004,92640.0,92638.0,0.21589412]
[1765317390221,0.0004,92640.0,92639.0,0.02792]
[1765317390410,0.0004,92640.0,92639.0,0.05584]
[1765317390638,0.0004,92640.0,92639.0,0.12428092]
[1765317390826,0.0004,92640.0,92639.0,0.09636092]
[1765317391450,0.0216,92639.0,92635.0,0.01079505]
[1765317391663,0.0216,92628.0,92627.0,0.01724]
[1765317392287,0.03239563,92630.0,92627.0,0.01724]
[1765317392539,0.0216,92630.0,92627.0,0.24395455]
[1765317392791,0.01079528,92633.0,92630.0,0.22670608]
[1765317392975,0.21591296,92631.0,92628.0,0.05030571]
[1765317393181,0.0099963,92637.0,92635.0,0.21589902]
[1765317393390,9e-05,92643.0,92638.0,0.21589352]
[1765317393615,9e-05,92643.0,92639.0,0.07692674]
[1765317394016,9e-05,92643.0,92639.0,0.10407674]
[1765317394739,0.0014,92640.0,92639.0,0.10407674]
[1765317395154,0.00461689,92640.0,92639.0,0.10407674]
[1765317395583,0.00461689,92640.0,92639.0,0.10167674]
[1765317395797,0.21580997,92675.0,92639.0,0.10167674]
[1765317395798,0.21577624,92689.0,92656.0,0.21585218]
[1765317396012,0.03083,92694.0,92656.0,0.35671921]
[1765317396013,0.03083,92683.0,92656.0,0.35671921]
[1765317396221,0.22696331,92690.0,92656.0,0.38310921]
[1765317396422,0.22656727,92688.0,92656.0,0.67380921]
[1765317396627,0.0004,92690.0,92656.0,0.75753618]
[1765317397049,0.0973515,92710.0,92656.0,0.76253618]
[1765317397256,0.08035023,92750.0,92656.0,0.76253618]
[1765317397257,0.45467816,92700.0,92693.0,0.0107883]
[1765317397483,0.45467816,92700.0,92690.0,0.02422865]
[1765317397484,0.0107876,92699.0,92690.0,0.01344]
[1765317397728,0.0099963,92682.0,92680.0,0.01724]
[1765317397889,0.09604287,92699.0,92680.0,0.01724]
[1765317397890,0.0099963,92681.0,92680.0,0.01078981]
[1765317398094,0.0099963,92681.0,92679.0,0.01078993]
[1765317398370,0.0099963,92681.0,92679.0,0.22658694]
[1765317399261,0.05365125,92770.0,92679.0,0.22658694]
[1765317399262,0.07438783,92697.0,92690.0,0.01078865]
[1765317399470,0.001,92699.0,92698.0,0.01298]
[1765317399846,0.00161287,92699.0,92698.0,0.21575438]
[1765317400045,0.0099963,92709.0,92708.0,0.22651699]
[1765317400278,0.0099963,92709.0,92708.0,0.03667438]
[1765317400451,0.01078678,92706.0,92689.0,0.01298]
[1765317400652,0.01078795,92696.0,92690.0,0.22656133]
[1765317400852,0.01078795,92696.0,92662.0,0.2907]
[1765317400853,0.0216,92686.0,92679.0,0.01078993]
[1765317401053,0.0216,92686.0,92649.0,0.0285975]
[1765317401054,0.01079039,92675.0,92672.0,0.01079074]
[1765317401317,0.0216,92676.0,92675.0,0.01079039]
[1765317401436,0.0216,92677.0,92675.0,0.25313921]
[1765317401634,0.00103298,92676.0,92675.0,0.25313921]
[1765317402650,0.00103298,92676.0,92675.0,0.30325921]
[1765317402902,0.00103298,92676.0,92675.0,0.29543921]
[1765317403743,0.00103298,92676.0,92675.0,0.27819921]
[1765317403950,0.00103298,92676.0,92675.0,0.29543921]
[1765317404149,0.00303298,92676.0,92675.0,0.29743921]
[1765317404394,0.00303298,92676.0,92675.0,0.32199921]
[1765317404567,0.00203298,92676.0,92675.0,0.29543921]
[1765317405139,0.00203298,92676.0,92675.0,0.27819921]
[1765317405264,0.00203298,92676.0,92675.0,0.31895921]
[1765317405884,0.00303298,92676.0,92675.0,0.32095921]
[1765317406437,0.00303298,92676.0,92675.0,0.30375921]
[1765317406938,0.00303298,92676.0,92675.0,0.32095921]
[1765317408310,0.00303298,92676.0,92675.0,0.30375921]
[1765317408513,0.00303298,92676.0,92675.0,0.32095921]
[1765317408681,0.00303298,92676.0,92675.0,0.29664921]
[1765317408887,0.11013928,92676.0,92675.0,0.002]
[1765317409109,0.01464215,92676.0,92675.0,0.002]
[1765317409540,0.11175215,92676.0,92675.0,0.002]
[1765317409704,1.51140735,92676.0,92675.0,0.002]
[1765317409897,0.0207889,92656.0,92650.0,0.0107933]
[1765317410101,0.0207889,92656.0,92641.0,0.01079435]
[1765317410102,0.01079389,92645.0,92641.0,0.01079435]
[1765317410298,0.0216,92644.0,92642.0,0.25791161]
[1765317410564,0.0216,92644.0,92642.0,0.24071161]
[1765317412470,0.0236,92644.0,92642.0,0.24071161]
[1765317414161,0.0246,92644.0,92642.0,0.24271161]
[1765317416186,0.1071063,92643.0,92642.0,0.02682735]
[1765317416520,0.0099963,92643.0,92642.0,0.002]
[1765317416672,0.0499663,92643.0,92642.0,0.002]
[1765317416874,0.0216,92637.0,92636.0,0.01079493]
[1765317417700,0.0216,92637.0,92636.0,0.03217493]
[1765317417899,0.003,92643.0,92642.0,0.2158848]
[1765317418129,0.003,92643.0,92642.0,0.2372648]
[1765317418330,0.003,92643.0,92642.0,0.2158848]
[1765317419326,0.0216,92645.0,92644.0,0.21588014]
[1765317419669,0.00022962,92648.0,92647.0,0.21587315]
[1765317419899,0.00022962,92648.0,92647.0,0.31146253]
[1765317420116,0.00022962,92648.0,92647.0,0.33236253]
[1765317420686,0.00022962,92648.0,92647.0,0.35303253]
[1765317421414,0.00022962,92648.0,92647.0,0.70625552]
[1765317421415,0.00099962,92648.0,92647.0,0.70625552]
[1765317421588,0.08279065,92719.0,92647.0,0.70625552]
[1765317421589,0.01078958,92682.0,92677.0,0.01079016]
[1765317421845,0.0216,92678.0,92676.0,0.2158056]
[1765317422048,0.0216,92678.0,92677.0,0.02134807]
[1765317422319,0.0216,92687.0,92686.0,0.22656985]
[1765317422518,0.01078946,92683.0,92678.0,0.01079004]
[1765317422718,0.25630958,92679.0,92675.0,0.22659701]
[1765317422921,0.0216,92677.0,92676.0,0.29716]
[1765317423175,0.02321287,92683.0,92682.0,0.21579163]
[1765317423422,0.00161287,92683.0,92682.0,0.21579163]
[1765317424072,0.00161287,92683.0,92681.0,0.21579381]
[1765317424273,0.00161287,92683.0,92680.0,0.01078981]
[1765317424403,0.04212233,92683.0,92681.0,0.03413148]
[1765317424604,0.0216,92674.0,92671.0,0.02894332]
[1765317424813,0.21582889,92666.0,92662.0,0.03596332]
[1765317425015,0.0216,92664.0,92657.0,0.24479231]
[1765317425208,0.0216,92658.0,92657.0,0.22664148]
[1765317425433,0.0216,92658.0,92657.0,0.3027315]
[1765317425802,0.0216,92659.0,92658.0,0.01079237]
[1765317426226,0.01079109,92669.0,92658.0,0.01079237]
[1765317426430,0.01079109,92669.0,92657.0,0.3027315]
[1765317426431,0.0216,92667.0,92666.0,0.01079144]
[1765317427041,0.0216,92667.0,92665.0,0.21583037]
[1765317427235,0.0216,92665.0,92664.0,0.22662266]
[1765317427441,0.01079062,92673.0,92667.0,0.01079132]
[1765317427599,0.01079144,92666.0,92664.0,0.21583298]
[1765317427797,0.2158271,92667.0,92663.0,0.22662766]
[1765317427798,0.0216,92664.0,92663.0,0.22662766]
[1765317428104,0.01079132,92667.0,92663.0,0.22662766]
[1765317428316,0.0216,92665.0,92664.0,0.04670537]
[1765317428741,0.05962,92665.0,92664.0,0.002]
[1765317428939,1.2143615,92665.0,92664.0,0.002]
[1765317429142,1.2143615,92665.0,92641.0,0.068681]
[1765317429143,0.01079284,92654.0,92651.0,0.00585]
[1765317429431,0.01079249,92657.0,92653.0,0.21585845]
[1765317429656,0.0099963,92660.0,92657.0,0.01079249]
[1765317429861,0.0216,92649.0,92648.0,0.02894332]
[1765317430062,0.01079319,92651.0,92646.0,0.01079377]
[1765317430063,0.0216,92647.0,92646.0,0.01079377]
[1765317430224,0.0216,92647.0,92646.0,0.03051974]
[1765317430422,0.11701,92647.0,92646.0,0.03051974]
[1765317430735,0.0216,92637.0,92636.0,0.01079493]
[1765317430870,0.0216,92636.0,92635.0,0.03973837]
[1765317431072,0.0216,92637.0,92635.0,0.25563902]
[1765317431275,0.0216,92637.0,92635.0,0.25563779]
[1765317431478,0.0216,92637.0,92636.0,0.09635331]
[1765317432266,0.0226,92637.0,92636.0,0.09635331]
[1765317432668,0.0216,92637.0,92636.0,0.09635331]
[1765317432867,0.0216,92637.0,92636.0,0.09735331]
[1765317433087,0.0226,92637.0,92636.0,0.31625209]
[1765317433320,0.23849645,92637.0,92636.0,0.10035331]
[1765317433521,0.0226,92637.0,92636.0,0.004]
[1765317433900,0.24010932,92637.0,92636.0,0.004]
[1765317434104,0.33551932,92637.0,92636.0,0.004]
[1765317434305,1.33551932,92637.0,92636.0,0.004]
[1765317434505,1.29261932,92637.0,92636.0,0.004]
[1765317434720,1.29261932,92637.0,92610.0,0.0385911]
[1765317434721,0.23755939,92610.0,92609.0,0.02894332]
[1765317434923,0.01079831,92607.0,92604.0,0.01079866]
[1765317435127,0.01079843,92606.0,92605.0,0.02939691]
[1765317435452,0.0216,92601.0,92599.0,0.23263248]
[1765317435810,0.0216,92601.0,92599.0,0.00585]
[1765317436011,0.0216,92601.0,92600.0,0.02119]
[1765317436211,0.00161287,92606.0,92604.0,0.21597205]
[1765317436412,0.00161287,92606.0,92605.0,0.04702042]
[1765317436619,0.22677608,92603.0,92600.0,0.01079913]
[1765317436818,0.00161287,92606.0,92603.0,0.2267745]
[1765317437038,0.00161287,92606.0,92604.0,0.21597276]
[1765317437241,0.00161287,92606.0,92602.0,0.22677615]
[1765317437441,0.00161287,92606.0,92603.0,0.2267736]
[1765317437648,0.00161287,92606.0,92604.0,0.0491798]
[1765317437844,0.22674323,92616.0,92612.0,0.01079773]
[1765317438069,0.22674581,92615.0,92610.0,0.2267556]
[1765317438301,0.0216,92612.0,92611.0,0.22675491]
[1765317439467,0.001,92615.0,92614.0,0.21595007]
[1765317439673,0.0226,92615.0,92614.0,0.3057717]
[1765317439892,0.001,92615.0,92614.0,0.3057717]
[1765317440117,0.001,92615.0,92614.0,0.3464917]
[1765317440331,0.21590781,92633.0,92614.0,0.3464917]
[1765317440332,0.01079552,92631.0,92627.0,0.01079598]
[1765317440530,0.03239552,92631.0,92628.0,0.04642371]
[1765317440751,0.01079563,92630.0,92628.0,0.04642371]
[1765317440934,0.22670879,92630.0,92628.0,0.04642371]
[1765317442209,0.22670917,92630.0,92628.0,0.04642371]
[1765317442438,0.0216,92631.0,92629.0,0.2159151]
[1765317442611,0.0216,92631.0,92630.0,0.05106431]
[1765317442817,0.0216,92631.0,92628.0,0.22671298]
[1765317443173,0.01079447,92640.0,92633.0,0.01079528]
[1765317443357,0.02865,92644.0,92637.0,0.01079482]
[1765317443358,0.0099963,92638.0,92637.0,0.01079482]
[1765317444167,0.0099963,92644.0,92643.0,0.22667659]
[1765317444377,0.002,92640.0,92637.0,0.03025482]
[1765317444573,0.002,92640.0,92639.0,0.21589171]
[1765317444790,0.0207903,92644.0,92641.0,0.21588582]
[1765317445155,0.0207903,92644.0,92641.0,0.22668017]
[1765317445397,0.23867045,92644.0,92642.0,0.06918477]
[1765317445593,0.23667045,92644.0,92641.0,0.01079435]
[1765317445823,0.23667045,92644.0,92643.0,0.0172]
[1765317446493,0.33036332,92644.0,92643.0,0.0172]
[1765317446694,0.33136332,92644.0,92643.0,0.0172]
[1765317446893,0.33336332,92644.0,92643.0,0.0172]
[1765317447098,0.33136332,92644.0,92643.0,0.0172]
[1765317447323,0.33036332,92644.0,92643.0,0.0172]
[1765317447500,0.33336332,92644.0,92643.0,0.0182]
[1765317447702,1.62406332,92644.0,92643.0,0.001]
[1765317448750,1.62206332,92644.0,92643.0,0.001]
[1765317449332,0.22670771,92631.0,92627.0,0.24391399]
[1765317449546,0.0099963,92630.0,92628.0,0.06973602]
[1765317449750,0.22591131,92630.0,92628.0,0.06973602]
[1765317450117,0.0099963,92630.0,92628.0,0.06973602]
[1765317450316,0.0099963,92630.0,92629.0,0.2159151]
[1765317450516,0.26984455,92643.0,92629.0,0.2159151]
[1765317450517,0.24830212,92633.0,92630.0,0.22670624]
[1765317450739,0.0216,92633.0,92632.0,0.2159081]
[1765317451704,0.0216,92633.0,92630.0,0.01079563]
[1765317451909,0.0216,92633.0,92630.0,0.22670777]
[1765317452129,0.0216,92633.0,92631.0,0.06544183]
[1765317452305,0.0216,92633.0,92631.0,0.28134999]
[1765317452508,0.0216,92633.0,92632.0,0.2159081]
[1765317453404,0.0226,92633.0,92632.0,0.2169081]
[1765317453610,0.0236,92633.0,92632.0,0.29156453]
[1765317454062,0.0236,92633.0,92632.0,0.07565643]
[1765317454283,0.002,92633.0,92632.0,0.32564453]
[1765317454497,0.002,92633.0,92632.0,0.30860453]
[1765317454722,0.002,92633.0,92632.0,0.32564453]
[1765317454930,0.002,92633.0,92632.0,0.30860453]
[1765317455557,0.001,92633.0,92632.0,0.30760453]
[1765317456012,0.002,92633.0,92632.0,0.31060453]
[1765317456211,0.001,92633.0,92632.0,0.31060453]
[1765317456417,0.0099963,92642.0,92641.0,0.21588713]
[1765317456626,0.0099963,92660.0,92653.0,0.01079295]
[1765317456840,0.0099963,92667.0,92655.0,0.23245451]
[1765317457095,0.0099963,92673.0,92655.0,0.23245451]
[1765317457301,0.0099963,92673.0,92655.0,0.24884451]
[1765317457698,0.02078692,92673.0,92655.0,0.24884451]
[1765317457881,0.0099963,92673.0,92655.0,0.27778783]
[1765317458277,0.0099963,92673.0,92655.0,0.24884451]
[1765317458479,0.0099963,92673.0,92655.0,0.33648411]
[1765317458678,0.02078692,92673.0,92655.0,0.33648411]
[1765317459003,0.02078692,92673.0,92655.0,0.36542743]
[1765317459206,0.0099963,92673.0,92655.0,0.33748411]
[1765317459412,0.01078969,92681.0,92655.0,0.33748411]
[1765317459413,0.01078923,92685.0,92655.0,0.4000071]
[1765317459588,0.01078865,92690.0,92655.0,0.4020071]
[1765317459798,0.21578262,92686.0,92655.0,0.42321108]
[1765317460039,0.01078958,92682.0,92655.0,0.4020071]
[1765317460216,0.21579033,92683.0,92655.0,0.44063183]
[1765317460368,0.01078981,92680.0,92655.0,0.44063183]
[1765317460568,0.01078969,92681.0,92655.0,0.43963183]
[1765317460916,0.21579195,92682.0,92655.0,0.43763183]
[1765317461063,0.01078981,92680.0,92655.0,0.44063183]
[1765317461269,0.01078969,92681.0,92655.0,0.4020071]
[1765317461890,0.00122959,92656.0,92655.0,0.6947071]
[1765317462091,0.00122959,92656.0,92655.0,0.71591108]
[1765317462562,0.00122959,92656.0,92655.0,0.77379773]
[1765317463031,0.01078806,92695.0,92694.0,0.22655187]
[1765317463032,0.0216,92695.0,92694.0,0.22655187]
[1765317463340,0.02321287,92695.0,92694.0,0.04309178]
[1765317464105,0.02621287,92695.0,92694.0,0.04309178]
[1765317464282,0.02621287,92695.0,92694.0,0.02589178]
[1765317464484,0.02621287,92695.0,92694.0,0.04309178]
[1765317465088,0.02821287,92695.0,92694.0,0.04309178]
[1765317465440,0.00661287,92695.0,92694.0,0.04309178]
[1765317465640,0.00161287,92695.0,92694.0,0.04309178]
[1765317466004,0.10468917,92695.0,92694.0,0.001]
[1765317466244,0.10468917,92695.0,92694.0,0.03269]
[1765317466245,0.01260917,92695.0,92694.0,0.03269]
[1765317466401,0.001,92695.0,92694.0,0.24845369]
[1765317466825,0.001,92695.0,92694.0,0.26294369]
[1765317468089,0.21572462,92711.0,92694.0,0.26294369]
[1765317468090,0.01078376,92732.0,92719.0,0.21570551]
[1765317468384,0.0004,92740.0,92719.0,0.24697551]
[1765317468385,0.23644208,92738.0,92719.0,0.24697551]
[1765317468531,0.0099963,92738.0,92719.0,0.26104551]
[1765317468985,0.00223537,92720.0,92719.0,0.26104551]
[1765317469163,0.00423537,92720.0,92719.0,0.3245685]
[1765317469362,0.00423537,92720.0,92719.0,0.71112891]
[1765317469859,0.00223537,92720.0,92719.0,0.71112891]
[1765317470134,0.00223537,92720.0,92719.0,0.71312891]
[1765317470478,0.00223537,92720.0,92719.0,0.82206633]
[1765317470680,0.00223537,92720.0,92719.0,0.81048041]
[1765317470880,0.00223537,92720.0,92719.0,0.80948041]
[1765317471127,0.00223537,92720.0,92719.0,0.80748041]
[1765317471533,0.00323537,92720.0,92719.0,0.81248041]
[1765317471944,0.0004,92740.0,92729.0,0.29940922]
[1765317472192,0.0004,92740.0,92729.0,0.31287922]
[1765317472466,0.0004,92740.0,92729.0,0.32613922]
[1765317472621,0.0004,92740.0,92739.0,0.27818198]
[1765317472820,9e-05,92769.0,92759.0,0.2156125]
[1765317473143,9e-05,92769.0,92759.0,0.2460725]
[1765317473144,0.01077957,92768.0,92759.0,0.2460725]
[1765317473456,0.0216,92767.0,92759.0,0.2460725]
[1765317473645,0.0216,92767.0,92759.0,0.2952523]
[1765317473825,9e-05,92769.0,92759.0,0.2911723]
[1765317474307,0.0024,92760.0,92759.0,0.3083723]
[1765317474780,0.0024,92760.0,92759.0,0.2911723]
[1765317474937,0.0024,92760.0,92759.0,0.3083723]
[1765317475279,0.0044,92760.0,92759.0,0.37089529]
[1765317475597,9e-05,92769.0,92768.0,0.27811457]
[1765317475840,9e-05,92769.0,92768.0,0.365491]
[1765317476045,9e-05,92769.0,92768.0,0.378211]
[1765317476455,9e-05,92769.0,92768.0,0.365491]
[1765317476653,9e-05,92769.0,92768.0,0.32016801]
[1765317476853,9e-05,92769.0,92768.0,0.10457643]
[1765317477057,0.21560959,92761.0,92759.0,0.0491798]
[1765317477216,0.01077981,92766.0,92761.0,0.21560665]
[1765317477417,0.22637847,92765.0,92762.0,0.0172]
[1765317477671,0.01077969,92767.0,92763.0,0.01078016]
[1765317477870,0.22807191,92769.0,92768.0,0.003]
[1765317478069,0.22807191,92769.0,92768.0,0.02873652]
[1765317478547,0.22807191,92769.0,92768.0,0.005]
[1765317478880,0.01077992,92765.0,92762.0,0.0172]
[1765317479284,0.01078155,92751.0,92748.0,0.0107819]
[1765317479485,0.21563693,92749.0,92747.0,0.0172]
[1765317480017,0.01078213,92746.0,92741.0,0.01078271]
[1765317480220,0.00161287,92749.0,92746.0,0.22642485]
[1765317480380,0.00161287,92749.0,92742.0,0.04440529]
[1765317480381,0.21564845,92744.0,92733.0,0.01078364]
[1765317480582,0.01078318,92737.0,92731.0,0.01174]
[1765317480841,0.00161287,92744.0,92732.0,0.0172]
[1765317480842,0.01078353,92734.0,92732.0,0.0172]
[1765317480980,0.01078353,92734.0,92726.0,0.02252446]
[1765317480981,0.21565202,92742.0,92733.0,0.0172]
[1765317481181,0.01078376,92732.0,92728.0,0.01078422]
[1765317481392,0.22645527,92734.0,92729.0,0.24366486]
[1765317481605,0.01078364,92733.0,92730.0,0.03632448]
[1765317481809,0.01078364,92733.0,92730.0,0.25200331]
[1765317482030,0.0099963,92737.0,92731.0,0.0172]
[1765317482233,0.0216,92743.0,92740.0,0.01078283]
[1765317482440,0.01078329,92736.0,92732.0,0.01078376]
[1765317482660,0.0216,92740.0,92735.0,0.21566676]
[1765317482661,0.22644193,92739.0,92735.0,0.21566676]